[Event "Irish International Open 2019"]
[Site "Dublin"]
[Date "2019.04.22"]
[Round "9.19"]
[White "Lundback, Anders"]
[Black "Kersten, Julian"]
[Result "1-0"]
[ECO "E61"]
[WhiteElo "1806"]
[BlackElo "1996"]
[Annotator "NA"]
[PlyCount "91"]
[EventDate "2019.02.28"]
[EventType "swiss"]
[EventCountry "IRL"]
[SourceTitle "playchess.com"]
[Source "ChessBase"]
[SourceQuality "1"]
[TimeControl "5400+30"]

1. d4 {[%emt 0:00:00]} Nf6 {[%emt 0:00:00]} 2. c4 {[%emt 0:00:00]} g6 {[%emt 0:00:00]} 3. Nc3 {[%emt 0:00:04]} Bg7 {[%emt 0:00:00]} 4. Nf3 {[%emt 0:00:02]} O-O {[%emt 0:00:13]} 5. Bg5 {[%emt 0:00:03]} d6 {[%emt 0:00:12]} 6. e3 {[%emt 0:00:04]} c5 {[%emt 0:02:24]} 7. Be2 {[%emt 0:00:21]} Nbd7 {[%emt 0:03:34]} 8. Qc2 {[%emt 0:01:02]} Re8 {[%emt 0:03:50]} 9. O-O {[%emt 0:00:21]} h6 {[%emt 0:00:56]} 10. Bh4 {[%emt 0:00:04]} g5 {[%emt 0:01:17]} 11. Bg3 {[%emt 0:00:06]} Nf8 {[%emt 0:01:19]} 12. Rfd1 {[%emt 0:00:35]} b6 {[%emt 0:01:35]} 13. a3 {[%emt 0:08:00]} Nh5 {[%emt 0:03:31]} 14. b4 {[%emt 0:03:13]} Nxg3 {[%emt 0:08:03]} 15. hxg3 {[%emt 0:00:16]} Qc7 {[%emt 0:07:31]} 16. Rac1 {[%emt 0:10:23]} Bb7 {[%emt 0:05:48]} 17. Rd2 {[%emt 0:09:55]} Rac8 {[%emt 0:04:18]} 18. Ne1 {[%emt 0:21:19]} Nd7 {[%emt 0:06:00]} 19. Nb5 {[%emt 0:13:58]} Qb8 {[%emt 0:01:19]} 20. Bg4 {[%emt 0:06:26]} Red8 {[%emt 0:12:18]} 21. Qb3 {[%emt 0:03:06]} cxb4 {[%emt 0:05:50]} 22. axb4 {[%emt 0:00:26]} a6 {[%emt 0:00:24]} 23. Nc3 {[%emt 0:00:56]} e6 {[%emt 0:00:48]} 24. Nd3 {[%emt 0:05:31]} Qa8 {[%emt 0:05:37]} 25. Ne1 {[%emt 0:01:56]} Nf6 {[%emt 0:02:03]} 26. Bf3 {[%emt 0:00:15]} Ne4 {[%emt 0:01:17]} 27. Nxe4 {[%emt 0:00:57]} Bxe4 {[%emt 0:00:06]} 28. Bxe4 {[%emt 0:01:04]} Qxe4 {[%emt 0:00:02]} 29. Ra2 {[%emt 0:00:37]} Qb7 {[%emt 0:01:12]} 30. Rca1 {[%emt 0:00:41]} Ra8 {[%emt 0:00:43]} 31. Nd3 {[%emt 0:02:23]} e5 {[%emt 0:03:40]} 32. d5 {[%emt 0:02:20]} e4 {[%emt 0:00:52]} 33. Nb2 {[%emt 0:00:25]} b5 {[%emt 0:02:15]} 34. Rd1 {[%emt 0:03:26]} Rdc8 {[%emt 0:02:43]} 35. Rc1 {[%emt 0:02:36]} bxc4 {[%emt 0:06:29]} 36. Rxc4 {[%emt 0:01:18]} Rab8 {[%emt 0:02:32]} 37. Rxe4 {[%emt 0:01:58]} Rc3 {[%emt 0:00:08]} 38. Qa4 {[%emt 0:00:39]} Rc1+ {[%emt 0:00:44]} 39. Kh2 {[%emt 0:00:14]} Qxd5 {[%emt 0:00:24]} 40. f3 {[%emt 0:02:23]} f5 {[%emt 0:02:54]} 41. Re7 {[%emt 0:00:20]} Bf6 {[%emt 0:03:04]} 42. Ra7 {[%emt 0:00:42]} Qe6 {[%emt 0:00:54]} 43. Nd3 {[%emt 0:00:20]} Rc3 {[%emt 0:01:00]} 44. Qxa6 {[%emt 0:00:30]} Qxe3 {[%emt 0:01:28]} 45. Qxd6 {[%emt 0:00:36]} Rxd3 {[%emt 0:00:40]} 46. Qxb8+ {[%emt 0:00:10]} 1-0

[Event "Irish International Open 2019"]
[Site "Dublin"]
[Date "2019.04.22"]
[Round "9.20"]
[White "Schmitz, Andreas Arnold"]
[Black "Plaza Reino, Mercedes"]
[Result "1-0"]
[ECO "B22"]
[WhiteElo "2003"]
[BlackElo "1927"]
[Annotator "NA"]
[PlyCount "131"]
[EventDate "2019.02.28"]
[EventType "swiss"]
[EventCountry "IRL"]
[SourceTitle "playchess.com"]
[Source "ChessBase"]
[SourceQuality "1"]
[TimeControl "5400+30"]

1. e4 {[%emt 0:00:00]} c5 {[%emt 0:00:00]} 2. c3 {[%emt 0:00:00]} d5 {[%emt 0:00:00]} 3. exd5 {[%emt 0:00:00]} Qxd5 {[%emt 0:00:00]} 4. d4 {[%emt 0:00:05]} Nf6 {[%emt 0:00:09]} 5. Nf3 {[%emt 0:00:09]} e6 {[%emt 0:00:11]} 6. Be2 {[%emt 0:03:58]} Nc6 {[%emt 0:00:23]} 7. Na3 {[%emt 0:01:34]} Qd8 {[%emt 0:07:58]} 8. Bf4 {[%emt 0:07:40]} cxd4 {[%emt 0:13:48]} 9. Nb5 {[%emt 0:11:35]} Nd5 {[%emt 0:00:26]} 10. Bg3 {[%emt 0:05:24]} dxc3 {[%emt 0:15:55]} 11. bxc3 {[%emt 0:00:19]} a6 {[%emt 0:00:49]} 12. c4 {[%emt 0:06:01]} axb5 {[%emt 0:07:47]} 13. cxd5 {[%emt 0:00:06]} Bb4+ {[%emt 0:08:49]} 14. Kf1 {[%emt 0:00:20]} Qxd5 {[%emt 0:05:46]} 15. Qxd5 {[%emt 0:00:25]} exd5 {[%emt 0:00:02]} 16. Bxb5 {[%emt 0:00:39]} O-O {[%emt 0:02:02]} 17. a4 {[%emt 0:03:32]} Bg4 {[%emt 0:10:15]} 18. Rb1 {[%emt 0:06:59]} Bc3 {[%emt 0:02:56]} 19. Ke2 {[%emt 0:09:51]} Nd4+ {[%emt 0:16:17]} 20. Kd3 {[%emt 0:00:31]} Nxb5 {[%emt 0:01:30]} 21. Rxb5 {[%emt 0:01:38]} Bf6 {[%emt 0:03:24]} 22. Ne5 {[%emt 0:05:39]} Bf5+ {[%emt 0:00:26]} 23. Kd2 {[%emt 0:00:46]} Be6 {[%emt 0:01:26]} 24. a5 {[%emt 0:00:40]} Rfd8 {[%emt 0:00:35]} 25. Rc1 {[%emt 0:00:43]} Rdc8 {[%emt 0:00:51]} 26. Rxc8+ {[%emt 0:00:27]} Rxc8 {[%emt 0:00:05]} 27. Rxb7 {[%emt 0:00:17]} Bxe5 {[%emt 0:01:00]} 28. Bxe5 {[%emt 0:00:04]} f6 {[%emt 0:00:35]} 29. Bd6 {[%emt 0:10:22]} d4 {[%emt 0:00:15]} 30. a6 {[%emt 0:02:24]} Bd5 {[%emt 0:00:12]} 31. g3 {[%emt 0:00:20]} Ra8 {[%emt 0:00:25]} 32. Rb8+ {[%emt 0:00:45]} Kf7 {[%emt 0:00:37]} 33. Rxa8 {[%emt 0:02:11]} Bxa8 {[%emt 0:00:01]} 34. Bc5 {[%emt 0:00:35]} Ke6 {[%emt 0:00:08]} 35. Bxd4 {[%emt 0:00:06]} Kd5 {[%emt 0:00:16]} 36. Ke3 {[%emt 0:00:55]} Ke6 {[%emt 0:00:41]} 37. Bc3 {[%emt 0:00:46]} Kd5 {[%emt 0:00:55]} 38. a7 {[%emt 0:01:10]} Bb7 {[%emt 0:00:18]} 39. g4 {[%emt 0:00:25]} Ke6 {[%emt 0:00:29]} 40. f4 {[%emt 0:02:37]} g6 {[%emt 0:00:08]} 41. h4 {[%emt 0:01:26]} h5 {[%emt 0:00:36]} 42. f5+ {[%emt 0:00:37]} Kf7 {[%emt 0:00:49]} 43. fxg6+ {[%emt 0:00:29]} Kxg6 {[%emt 0:00:02]} 44. gxh5+ {[%emt 0:00:21]} Kxh5 {[%emt 0:02:43]} 45. Bxf6 {[%emt 0:00:07]} Kg6 {[%emt 0:00:00]} 46. Bd8 {[%emt 0:00:39]} Kf5 {[%emt 0:00:00]} 47. Kd4 {[%emt 0:01:26]} Ke6 {[%emt 0:00:00]} 48. h5 {[%emt 0:01:01]} Kf7 {[%emt 0:00:28]} 49. Bg5 {[%emt 0:01:15]} Ke6 {[%emt 0:00:47]} 50. h6 {[%emt 0:00:48]} Kf7 {[%emt 0:00:03]} 51. Kc5 {[%emt 0:00:37]} Be4 {[%emt 0:00:45]} 52. Kd6 {[%emt 0:00:29]} Kg6 {[%emt 0:00:30]} 53. Be3 {[%emt 0:00:15]} Kh7 {[%emt 0:00:24]} 54. Kc7 {[%emt 0:00:09]} Kg8 {[%emt 0:00:12]} 55. Kb8 {[%emt 0:00:06]} Kh7 {[%emt 0:00:21]} 56. a8=Q {[%emt 0:00:19]} Bxa8 {[%emt 0:00:21]} 57. Kxa8 {[%emt 0:00:06]} Kg8 {[%emt 0:00:13]} 58. Kb7 {[%emt 0:00:05]} Kh7 {[%emt 0:00:11]} 59. Kc6 {[%emt 0:00:07]} Kg8 {[%emt 0:01:05]} 60. Kd6 {[%emt 0:00:09]} Kf7 {[%emt 0:01:50]} 61. Ke5 {[%emt 0:00:40]} Kg6 {[%emt 0:00:16]} 62. Ke6 {[%emt 0:00:06]} Kh7 {[%emt 0:00:45]} 63. Kf5 {[%emt 0:00:14]} Kg8 {[%emt 0:00:32]} 64. Kg6 {[%emt 0:00:10]} Kh8 {[%emt 0:00:20]} 65. Bd4+ {[%emt 0:00:17]} Kg8 {[%emt 0:00:06]} 66. h7+ {[%emt 0:00:10]} 1-0

[Event "Irish International Open 2019"]
[Site "Dublin"]
[Date "2019.04.22"]
[Round "9.21"]
[White "Abul Kalam, Azad Lilu"]
[Black "Mulligan, Scott"]
[Result "1/2-1/2"]
[ECO "B18"]
[WhiteElo "1951"]
[BlackElo "2006"]
[Annotator "NA"]
[PlyCount "69"]
[EventDate "2019.02.28"]
[EventType "swiss"]
[EventCountry "IRL"]
[SourceTitle "playchess.com"]
[Source "ChessBase"]
[SourceQuality "1"]
[TimeControl "5400+30"]

1. e4 {[%emt 1:30:30]} c6 {[%emt 1:30:30]} 2. d4 {[%emt 0:00:30]} d5 {[%emt 0:00:30]} 3. Nc3 {[%emt 0:00:30]} dxe4 {[%emt 0:00:30]} 4. Nxe4 {[%emt 0:00:30]} Bf5 {[%emt 0:00:30]} 5. Ng3 {[%emt 0:00:30]} Bg6 {[%emt 0:00:30]} 6. Nf3 {[%emt 0:00:30]} Nd7 {[%emt 0:00:30]} 7. Bd3 {[%emt 0:00:30]} Bxd3 {[%emt 0:00:30]} 8. Qxd3 {[%emt 0:00:30]} Ngf6 {[%emt 0:00:30]} 9. O-O {[%emt 0:00:30]} e6 {[%emt 0:00:30]} 10. Re1 {[%emt 0:00:30]} Be7 {[%emt 0:00:30]} 11. Bd2 {[%emt 0:00:30]} Qb6 {[%emt 0:00:30]} 12. b3 {[%emt 0:00:30]} a5 {[%emt 0:00:30]} 13. a3 {[%emt 0:00:30]} O-O {[%emt 0:00:30]} 14. c4 {[%emt 0:00:30]} Rfe8 {[%emt 0:00:30]} 15. c5 {[%emt 0:00:30]} Qc7 {[%emt 0:00:30]} 16. b4 {[%emt 0:00:30]} Red8 {[%emt 0:00:30]} 17. Qe2 {[%emt 0:00:30]} axb4 {[%emt 0:00:30]} 18. axb4 {[%emt 0:00:30]} Nd5 {[%emt 0:00:30]} 19. b5 {[%emt 0:00:30]} b6 {[%emt 0:00:30]} 20. bxc6 {[%emt 0:00:30]} Qxc6 {[%emt 0:00:30]} 21. cxb6 {[%emt 0:00:30]} N7xb6 {[%emt 0:00:30]} 22. Rxa8 {[%emt 0:00:30]} Rxa8 {[%emt 0:00:30]} 23. Rc1 {[%emt 0:00:30]} Qa4 {[%emt 0:00:30]} 24. Ne4 {[%emt 0:00:30]} Nd7 {[%emt 0:00:30]} 25. h4 {[%emt 0:00:30]} Bf6 {[%emt 0:00:30]} 26. Qd3 {[%emt 0:00:30]} g6 {[%emt 0:00:30]} 27. Nxf6+ {[%emt 0:00:30]} N7xf6 {[%emt 0:00:30]} 28. Ne5 {[%emt 0:00:30]} Kg7 {[%emt 0:00:30]} 29. Rb1 {[%emt 0:00:30]} Nd7 {[%emt 0:00:30]} 30. Ng4 {[%emt 0:00:30]} h5 {[%emt 0:00:30]} 31. Nh2 {[%emt 0:00:30]} N7f6 {[%emt 0:00:30]} 32. Bc1 {[%emt 0:00:30]} Rc8 {[%emt 0:00:30]} 33. Bg5 {[%emt 0:00:30]} Rc4 {[%emt 0:00:30]} 34. Bxf6+ Nxf6 35. Rd1 1/2-1/2

[Event "Irish International Open 2019"]
[Site "Dublin"]
[Date "2019.04.22"]
[Round "9.22"]
[White "Murphy, Sean"]
[Black "Scott, Luke"]
[Result "0-1"]
[ECO "E11"]
[WhiteElo "1976"]
[BlackElo "1881"]
[Annotator "NA"]
[PlyCount "94"]
[EventDate "2019.02.28"]
[EventType "swiss"]
[EventCountry "IRL"]
[SourceTitle "playchess.com"]
[Source "ChessBase"]
[SourceQuality "1"]
[TimeControl "5400+30"]

1. d4 {[%emt 0:00:00]} Nf6 {[%emt 0:01:38]} 2. c4 {[%emt 0:00:03]} e6 {[%emt 0:00:08]} 3. Nf3 {[%emt 0:00:05]} Bb4+ {[%emt 0:00:05]} 4. Nbd2 {[%emt 0:00:34]} O-O {[%emt 0:04:19]} 5. a3 {[%emt 0:01:17]} Bxd2+ {[%emt 0:00:21]} 6. Bxd2 {[%emt 0:00:32]} h6 {[%emt 0:00:19]} 7. g3 {[%emt 0:01:39]} d5 {[%emt 0:01:17]} 8. Qc2 {[%emt 0:01:55]} a5 {[%emt 0:01:18]} 9. Bg2 {[%emt 0:02:32]} a4 {[%emt 0:01:01]} 10. O-O {[%emt 0:01:43]} Nbd7 {[%emt 0:00:54]} 11. Rfd1 {[%emt 0:01:13]} Re8 {[%emt 0:00:31]} 12. Bf4 {[%emt 0:02:11]} c6 {[%emt 0:00:11]} 13. Ne5 {[%emt 0:04:35]} Nxe5 {[%emt 0:00:42]} 14. Bxe5 {[%emt 0:07:32]} Nd7 {[%emt 0:00:12]} 15. e4 {[%emt 0:11:23]} Nxe5 {[%emt 0:01:30]} 16. dxe5 {[%emt 0:01:04]} d4 {[%emt 0:00:07]} 17. c5 {[%emt 0:00:53]} Re7 {[%emt 0:02:25]} 18. Rd3 {[%emt 0:01:39]} Rd7 {[%emt 0:00:06]} 19. Rad1 {[%emt 0:01:48]} b6 {[%emt 0:01:09]} 20. Bf1 {[%emt 0:07:30]} Ra5 {[%emt 1:21:47]} 21. f4 {[%emt 0:07:01]} bxc5 {[%emt 0:00:00]} 22. Rf3 {[%emt 0:00:56]} Qb6 {[%emt 0:00:00]} 23. Qc1 {[%emt 0:03:46]} Rb7 {[%emt 0:00:00]} 24. Rd2 {[%emt 0:00:47]} Qc7 {[%emt 0:00:00]} 25. Rc2 {[%emt 0:00:28]} Qb6 {[%emt 0:00:00]} 26. Bc4 {[%emt 0:01:16]} Re7 {[%emt 0:00:00]} 27. Kh1 {[%emt 0:02:28]} Ba6 {[%emt 0:00:00]} 28. Bxa6 {[%emt 0:01:01]} Qxa6 {[%emt 0:00:00]} 29. f5 {[%emt 0:11:25]} exf5 {[%emt 0:00:00]} 30. Rxf5 {[%emt 0:00:10]} Qd3 {[%emt 0:00:00]} 31. Rcf2 {[%emt 0:04:02]} Qxe4+ {[%emt 0:00:00]} 32. Kg1 {[%emt 0:00:06]} Qd5 {[%emt 0:00:00]} 33. g4 {[%emt 0:09:34]} Rxe5 {[%emt 0:00:00]} 34. Rxf7 {[%emt 0:00:14]} Qxf7 {[%emt 0:00:00]} 35. Rxf7 {[%emt 0:00:05]} Kxf7 {[%emt 0:00:00]} 36. Qf4+ {[%emt 0:00:31]} Ke6 {[%emt 0:00:00]} 37. Qf8 {[%emt 0:00:21]} Rb5 {[%emt 0:00:00]} 38. Qe8+ {[%emt 0:04:31]} Kd5 {[%emt 0:00:00]} 39. Qd7+ {[%emt 0:01:24]} Kc4 {[%emt 0:09:30]} 40. Qf7+ {[%emt 0:02:06]} Kd3 {[%emt 0:00:00]} 41. Qf1+ {[%emt 0:01:32]} Kd2 {[%emt 0:00:00]} 42. Qg2+ {[%emt 0:02:57]} Re2 {[%emt 0:00:00]} 43. Qf3 {[%emt 0:02:06]} Rxb2 {[%emt 0:00:00]} 44. Qf4+ {[%emt 0:00:03]} Kc2 {[%emt 0:00:00]} 45. Kf1 {[%emt 0:00:30]} Kb3 {[%emt 0:00:00]} 46. Qf7+ {[%emt 0:00:56]} Kxa3 {[%emt 0:00:00]} 47. Qc4 {[%emt 0:01:53]} Rec2 {[%emt 0:00:00]} 0-1

[Event "Irish International Open 2019"]
[Site "Dublin"]
[Date "2019.04.22"]
[Round "9.23"]
[White "Schmitz, Manuela"]
[Black "Moran, Darragh"]
[Result "0-1"]
[ECO "D94"]
[WhiteElo "1968"]
[BlackElo "1844"]
[Annotator "NA"]
[PlyCount "86"]
[EventDate "2019.02.28"]
[EventType "swiss"]
[EventCountry "IRL"]
[SourceTitle "playchess.com"]
[Source "ChessBase"]
[SourceQuality "1"]
[TimeControl "5400+30"]

1. d4 {[%emt 0:00:00]} Nf6 {[%emt 0:00:00]} 2. Nf3 {[%emt 0:00:00]} g6 {[%emt 0:00:00]} 3. c4 {[%emt 0:00:00]} c5 {[%emt 0:00:00]} 4. e3 {[%emt 0:00:00]} Bg7 {[%emt 0:00:00]} 5. Nc3 {[%emt 0:00:02]} cxd4 {[%emt 0:00:19]} 6. exd4 {[%emt 0:00:07]} O-O {[%emt 0:00:34]} 7. Be2 {[%emt 0:00:15]} d5 {[%emt 0:00:10]} 8. O-O {[%emt 0:05:23]} dxc4 {[%emt 0:00:46]} 9. Bxc4 {[%emt 0:00:31]} Nc6 {[%emt 0:00:02]} 10. h3 {[%emt 0:01:56]} Bf5 {[%emt 0:01:17]} 11. a3 {[%emt 0:01:59]} Rc8 {[%emt 0:04:12]} 12. Be3 {[%emt 0:05:13]} Ne4 {[%emt 0:07:22]} 13. Rc1 {[%emt 0:03:48]} Nxc3 {[%emt 0:01:46]} 14. Rxc3 {[%emt 0:02:16]} Na5 {[%emt 0:03:41]} 15. Bd3 {[%emt 0:01:39]} Rxc3 {[%emt 0:00:49]} 16. bxc3 {[%emt 0:00:04]} Bxd3 {[%emt 0:01:00]} 17. Qxd3 {[%emt 0:00:07]} Qc7 {[%emt 0:00:39]} 18. Nd2 {[%emt 0:03:03]} Rc8 {[%emt 0:00:35]} 19. Rc1 {[%emt 0:00:22]} Nc4 {[%emt 0:00:35]} 20. Nxc4 {[%emt 0:00:05]} Qxc4 {[%emt 0:00:06]} 21. Qe4 {[%emt 0:00:53]} Rc7 {[%emt 0:03:45]} 22. Bf4 {[%emt 0:02:31]} Rd7 {[%emt 0:01:31]} 23. Rb1 {[%emt 0:03:52]} f5 {[%emt 0:30:24]} 24. Qf3 {[%emt 0:02:31]} b6 {[%emt 0:02:07]} 25. Rb4 {[%emt 0:02:53]} Qd5 {[%emt 0:04:34]} 26. Qxd5+ {[%emt 0:04:16]} Rxd5 {[%emt 0:00:01]} 27. Ra4 {[%emt 0:06:01]} a5 {[%emt 0:04:19]} 28. Be3 {[%emt 0:06:13]} Kf7 {[%emt 0:07:01]} 29. c4 {[%emt 0:00:31]} Rxd4 {[%emt 0:00:54]} 30. Bxd4 {[%emt 0:00:06]} Bxd4 {[%emt 0:00:07]} 31. c5 {[%emt 0:00:15]} Bxc5 {[%emt 0:00:05]} 32. Kf1 {[%emt 0:00:09]} e5 {[%emt 0:01:26]} 33. Ke2 {[%emt 0:00:12]} Ke6 {[%emt 0:00:30]} 34. f3 {[%emt 0:00:10]} Kd5 {[%emt 0:01:08]} 35. Kd3 {[%emt 0:00:09]} h5 {[%emt 0:02:47]} 36. Kc3 {[%emt 0:02:15]} e4 {[%emt 0:01:52]} 37. fxe4+ {[%emt 0:00:07]} fxe4 {[%emt 0:00:03]} 38. Kd2 {[%emt 0:00:34]} g5 {[%emt 0:01:28]} 39. Ke2 {[%emt 0:00:19]} Ke5 {[%emt 0:02:16]} 40. g3 {[%emt 0:03:23]} Kd5 {[%emt 0:01:26]} 41. Kf1 {[%emt 0:00:25]} Bd6 {[%emt 0:00:45]} 42. g4 {[%emt 0:00:20]} hxg4 {[%emt 0:00:41]} 43. hxg4 {[%emt 0:00:04]} Bc7 {[%emt 0:00:12]} 0-1

[Event "Irish International Open 2019"]
[Site "Dublin"]
[Date "2019.04.22"]
[Round "9.24"]
[White "Halvorsen, Benjamin"]
[Black "Scallan, Fiachra"]
[Result "0-1"]
[ECO "C18"]
[WhiteElo "1767"]
[BlackElo "1899"]
[Annotator "NA"]
[PlyCount "72"]
[EventDate "2019.02.28"]
[EventType "swiss"]
[EventCountry "IRL"]
[SourceTitle "playchess.com"]
[Source "ChessBase"]
[SourceQuality "1"]
[TimeControl "5400+30"]

1. e4 {[%emt 0:00:00]} e6 {[%emt 0:00:00]} 2. d4 {[%emt 0:00:00]} d5 {[%emt 0:00:00]} 3. Nc3 {[%emt 0:00:00]} Bb4 {[%emt 0:00:00]} 4. e5 {[%emt 0:00:00]} c5 {[%emt 0:00:00]} 5. a3 {[%emt 0:00:00]} Bxc3+ {[%emt 0:00:00]} 6. bxc3 {[%emt 0:00:00]} Ne7 {[%emt 0:00:00]} 7. Bd3 {[%emt 0:01:10]} Qc7 {[%emt 1:33:30]} 8. Qg4 {[%emt 0:01:37]} cxd4 {[%emt 0:00:00]} 9. Ne2 {[%emt 0:06:17]} dxc3 {[%emt 0:00:00]} 10. Qxg7 {[%emt 0:00:44]} Rg8 {[%emt 0:00:00]} 11. Qxh7 {[%emt 1:25:42]} Qxe5 {[%emt 0:00:00]} 12. Qh3 {[%emt 0:00:00]} Nbc6 {[%emt 0:00:00]} 13. Bf4 {[%emt 0:00:00]} Qf6 {[%emt 0:00:00]} 14. Qf3 {[%emt 0:00:00]} d4 {[%emt 0:00:00]} 15. Bg3 {[%emt 0:00:00]} Qxf3 {[%emt 0:00:00]} 16. gxf3 {[%emt 0:00:00]} e5 {[%emt 0:00:00]} 17. f4 {[%emt 0:00:00]} f6 {[%emt 0:00:00]} 18. fxe5 {[%emt 0:00:00]} fxe5 {[%emt 0:00:00]} 19. Rb1 {[%emt 0:00:00]} a6 {[%emt 0:00:00]} 20. f4 {[%emt 0:00:00]} exf4 {[%emt 0:00:00]} 21. Nxf4 {[%emt 0:00:00]} b5 {[%emt 0:00:00]} 22. Kf2 {[%emt 0:00:00]} Bf5 {[%emt 0:00:00]} 23. Rbe1 {[%emt 0:00:00]} O-O-O {[%emt 0:00:00]} 24. Bxf5+ {[%emt 0:00:00]} Nxf5 {[%emt 0:00:00]} 25. Re6 {[%emt 0:00:00]} Kd7 {[%emt 0:00:00]} 26. Rhe1 {[%emt 0:00:00]} Nxg3 {[%emt 0:00:00]} 27. hxg3 {[%emt 0:00:00]} a5 {[%emt 0:00:00]} 28. Rh6 {[%emt 0:00:00]} Rge8 {[%emt 0:00:00]} 29. Rh7+ {[%emt 0:00:00]} Kd6 {[%emt 0:00:00]} 30. Rh6+ {[%emt 0:00:00]} Kd7 {[%emt 0:00:00]} 31. Rh7+ {[%emt 0:00:00]} Kc8 {[%emt 0:00:00]} 32. Rxe8 {[%emt 0:01:27]} Rxe8 {[%emt 0:00:00]} 33. Nd5 {[%emt 0:00:14]} Re5 {[%emt 0:00:00]} 34. Nb6+ {[%emt 0:02:57]} Kd8 {[%emt 0:00:00]} 35. Rh8+ {[%emt 0:00:31]} Kc7 {[%emt 0:00:00]} 36. Nc8 {[%emt 0:02:02]} a4 {[%emt 0:00:00]} 0-1

[Event "Irish International Open 2019"]
[Site "Dublin"]
[Date "2019.04.22"]
[Round "9.25"]
[White "Hafstad, Leif"]
[Black "Burg, Henk"]
[Result "1/2-1/2"]
[ECO "B40"]
[WhiteElo "1857"]
[BlackElo "1719"]
[Annotator "NA"]
[PlyCount "60"]
[EventDate "2019.02.28"]
[EventType "swiss"]
[EventCountry "IRL"]
[SourceTitle "playchess.com"]
[Source "ChessBase"]
[SourceQuality "1"]
[TimeControl "5400+30"]

1. e4 {[%emt 0:00:00]} c5 {[%emt 0:00:00]} 2. Nf3 {[%emt 0:00:00]} e6 {[%emt 0:00:00]} 3. g3 {[%emt 0:00:04]} Nc6 {[%emt 0:00:08]} 4. Bg2 {[%emt 0:00:54]} Qc7 {[%emt 0:00:13]} 5. O-O {[%emt 0:01:57]} Nf6 {[%emt 0:00:07]} 6. Nc3 {[%emt 0:02:37]} a6 {[%emt 0:00:22]} 7. a4 {[%emt 0:02:07]} d5 {[%emt 0:03:29]} 8. exd5 {[%emt 0:00:46]} exd5 {[%emt 0:02:00]} 9. d4 {[%emt 0:01:14]} Be6 {[%emt 0:04:06]} 10. Re1 {[%emt 0:12:56]} Rd8 {[%emt 0:05:31]} 11. Bh3 {[%emt 0:11:00]} Nxd4 {[%emt 0:05:55]} 12. Nxd4 {[%emt 0:15:20]} cxd4 {[%emt 0:00:06]} 13. Qxd4 {[%emt 0:15:54]} Bc5 {[%emt 0:03:11]} 14. Qf4 {[%emt 0:04:45]} Qd7 {[%emt 0:06:19]} 15. Qe5 {[%emt 0:05:27]} O-O {[%emt 0:13:28]} 16. Bxe6 {[%emt 0:00:19]} fxe6 {[%emt 0:00:38]} 17. Be3 {[%emt 0:06:19]} Ng4 {[%emt 0:06:39]} 18. Qh5 {[%emt 0:01:14]} Nxe3 {[%emt 0:04:14]} 19. fxe3 {[%emt 0:01:12]} Rf5 {[%emt 0:01:13]} 20. Qe2 {[%emt 0:02:30]} Rdf8 {[%emt 0:00:33]} 21. Rf1 {[%emt 0:00:44]} Qf7 {[%emt 0:03:50]} 22. Rxf5 {[%emt 0:03:36]} Qxf5 {[%emt 0:00:03]} 23. Kg2 {[%emt 0:00:45]} Qg5 {[%emt 0:05:11]} 24. Re1 {[%emt 0:01:17]} Bb4 {[%emt 0:00:48]} 25. Qd3 {[%emt 0:02:16]} Qe5 {[%emt 0:01:43]} 26. Rf1 {[%emt 0:01:50]} Rxf1 {[%emt 0:01:40]} 27. Kxf1 {[%emt 0:00:09]} Bxc3 {[%emt 0:00:22]} 28. Qxc3 {[%emt 0:00:36]} Qxc3 {[%emt 0:00:33]} 29. bxc3 {[%emt 0:00:03]} Kf7 {[%emt 0:00:13]} 30. Ke2 {[%emt 0:00:24]} Kf6 {[%emt 0:32:25]} 1/2-1/2

[Event "Irish International Open 2019"]
[Site "Dublin"]
[Date "2019.04.22"]
[Round "9.26"]
[White "O`Connell, Kevin J."]
[Black "Putar, Leon"]
[Result "0-1"]
[ECO "A45"]
[WhiteElo "2328"]
[BlackElo "1549"]
[Annotator "NA"]
[PlyCount "84"]
[EventDate "2019.02.28"]
[EventType "swiss"]
[EventCountry "IRL"]
[SourceTitle "playchess.com"]
[Source "ChessBase"]
[SourceQuality "1"]
[TimeControl "5400+30"]

1. d4 {[%emt 0:00:00]} Nf6 {[%emt 0:00:00]} 2. Bf4 {[%emt 0:00:00]} c5 {[%emt 0:00:30]} 3. e3 {[%emt 0:03:34]} Qb6 {[%emt 0:01:49]} 4. b3 {[%emt 0:06:51]} cxd4 {[%emt 0:02:14]} 5. exd4 {[%emt 0:01:25]} d6 {[%emt 0:01:15]} 6. c4 {[%emt 0:10:13]} g6 $14 {[%emt 0:03:20]} 7. Nc3 {[%emt 0:04:17]} Bg7 {[%emt 0:02:23]} 8. Rc1 {[%emt 0:08:49]} O-O {[%emt 0:02:16]} 9. Be2 {[%emt 0:08:15]} Bf5 {[%emt 0:09:53]} 10. Be3 {[%emt 0:05:58]} Nbd7 {[%emt 0:14:54]} 11. Na4 {[%emt 0:04:22]} Qa5+ {[%emt 0:03:45]} 12. Bd2 {[%emt 0:00:16]} Qd8 {[%emt 0:00:16]} 13. Nc3 {[%emt 0:14:04]} e5 {[%emt 0:10:35]} 14. d5 {[%emt 0:09:19]} Nc5 {[%emt 0:02:21]} 15. Be3 {[%emt 0:00:49]} Na6 {[%emt 0:01:02]} 16. g4 {[%emt 0:01:10]} Be4 {[%emt 0:01:27]} 17. Bf3 {[%emt 0:07:08]} Bxf3 {[%emt 0:00:40]} 18. Qxf3 {[%emt 0:00:17]} Nb4 {[%emt 0:00:19]} 19. Bd2 {[%emt 0:01:03]} e4 {[%emt 0:00:53]} 20. Nxe4 {[%emt 0:00:03]} Nxe4 {[%emt 0:00:05]} 21. Bxb4 {[%emt 0:00:24]} a5 {[%emt 0:00:08]} 22. Bd2 {[%emt 0:03:32]} Nxd2 {[%emt 0:00:08]} 23. Kxd2 {[%emt 0:00:01]} Bh6+ {[%emt 0:00:11]} 24. Kc2 {[%emt 0:00:01]} Bxc1 {[%emt 0:00:12]} 25. Kxc1 {[%emt 0:00:01]} Qg5+ {[%emt 0:00:11]} 26. Qe3 {[%emt 0:04:08]} Qxe3+ {[%emt 0:00:13]} 27. fxe3 {[%emt 0:00:01]} Rfe8 {[%emt 0:00:10]} 28. Kd2 {[%emt 0:00:12]} Re4 {[%emt 0:00:05]} 29. h3 {[%emt 0:00:14]} Rae8 {[%emt 0:00:05]} 30. Nf3 {[%emt 0:00:17]} Rxe3 {[%emt 0:00:09]} 31. Re1 {[%emt 0:01:00]} Rxe1 {[%emt 0:44:01]} 32. Nxe1 {[%emt 0:08:16]} Kg7 {[%emt 0:00:00]} 33. Nf3 {[%emt 0:00:00]} h6 {[%emt 0:00:00]} 34. a3 {[%emt 0:00:00]} Kf6 {[%emt 0:00:00]} 35. b4 {[%emt 0:00:00]} axb4 {[%emt 0:00:00]} 36. axb4 {[%emt 0:00:00]} Ra8 {[%emt 0:00:00]} 37. Ke3 {[%emt 0:00:00]} Ra4 {[%emt 0:00:00]} 38. Kd4 {[%emt 0:00:00]} Rxb4 {[%emt 0:00:00]} 39. Nd2 {[%emt 0:00:00]} b5 {[%emt 0:00:00]} 40. Ne4+ {[%emt 0:00:13]} Ke7 {[%emt 0:00:00]} 41. Nd2 {[%emt 0:00:01]} bxc4 {[%emt 0:00:00]} 42. Nxc4 {[%emt 0:00:12]} Kf6 {[%emt 0:00:00]} 0-1